[Event "Early-Titled-Tuesday-Blitz-May-28-2024"]
[Site "Chess.com"]
[Date "2024.05.28"]
[Round "6"]
[White "Fernando_Offermann"]
[Black "SimplyDevina"]
[Result "1-0"]
[WhiteElo "2476"]
[BlackElo "2305"]
[TimeControl "180+1"]
[EndTime "9:07:22 PDT"]
[Termination "Fernando_Offermann won by resignation"]

1. Nf3 {[%clk 0:02:57.4]} 1... d5 {[%clk 0:02:57.3]} 2. g3 {[%clk 0:02:57.5]}
2... Nf6 {[%clk 0:02:56.1]} 3. Bg2 {[%clk 0:02:57.7]} 3... g6 {[%clk 0:02:55.7]}
4. O-O {[%clk 0:02:57.6]} 4... Bg7 {[%clk 0:02:55]} 5. d3 {[%clk 0:02:57.8]}
5... O-O {[%clk 0:02:55.5]} 6. Nbd2 {[%clk 0:02:58]} 6... c5 {[%clk 0:02:54.6]}
7. e4 {[%clk 0:02:58.3]} 7... d4 {[%clk 0:02:54]} 8. a4 {[%clk 0:02:57.3]} 8...
Nc6 {[%clk 0:02:53.7]} 9. Nc4 {[%clk 0:02:54.7]} 9... Nd7 {[%clk 0:02:50.7]} 10.
Re1 {[%clk 0:02:47]} 10... e5 {[%clk 0:02:47]} 11. Nd6 {[%clk 0:02:46.5]} 11...
Qe7 {[%clk 0:02:31.9]} 12. Nxc8 {[%clk 0:02:46.3]} 12... Raxc8 {[%clk
0:02:30.8]} 13. Nd2 {[%clk 0:02:45.9]} 13... f5 {[%clk 0:02:05.1]} 14. exf5
{[%clk 0:02:45.2]} 14... gxf5 {[%clk 0:02:04.7]} 15. Nc4 {[%clk 0:02:45.3]}
15... Nb6 {[%clk 0:01:55.2]} 16. Nxb6 {[%clk 0:02:39.6]} 16... axb6 {[%clk
0:01:54.8]} 17. c3 {[%clk 0:02:39.6]} 17... Qd6 {[%clk 0:01:46.3]} 18. Qb3+
{[%clk 0:02:39]} 18... Kh8 {[%clk 0:01:45.4]} 19. Qxb6 {[%clk 0:02:39]} 19...
dxc3 {[%clk 0:01:37.7]} 20. bxc3 {[%clk 0:02:38.4]} 20... Qxd3 {[%clk
0:01:35.6]} 21. Qxb7 {[%clk 0:02:30.1]} 21... Na5 {[%clk 0:01:24.9]} 22. Qb5
{[%clk 0:01:50.1]} 22... Qxc3 {[%clk 0:01:09.9]} 23. Bb2 {[%clk 0:01:49.4]}
23... Qb4 {[%clk 0:01:09.9]} 24. Bxe5 {[%clk 0:01:47.8]} 24... Qxb5 {[%clk
0:00:52.7]} 25. axb5 {[%clk 0:01:45.9]} 25... Bxe5 {[%clk 0:00:52.6]} 26. Rxe5
{[%clk 0:01:42.6]} 26... Nb3 {[%clk 0:00:52.1]} 27. Rb1 {[%clk 0:01:37.8]} 27...
c4 {[%clk 0:00:51.7]} 28. Bd5 {[%clk 0:01:32.9]} 28... Nd2 {[%clk 0:00:49.3]}
29. Rc1 {[%clk 0:01:31.8]} 29... Rc5 {[%clk 0:00:45.7]} 30. b6 {[%clk
0:01:29.4]} 30... Nf3+ {[%clk 0:00:45.1]} 31. Bxf3 {[%clk 0:01:28.2]} 31... Rxe5
{[%clk 0:00:45.6]} 32. Rxc4 {[%clk 0:01:27.5]} 32... Ree8 {[%clk 0:00:39.4]} 33.
b7 {[%clk 0:01:27.6]} 33... Rb8 {[%clk 0:00:40.1]} 34. Rc7 {[%clk 0:01:24.8]}
34... Rfd8 {[%clk 0:00:40.4]} 35. h4 {[%clk 0:01:24.2]} 35... Kg8 {[%clk
0:00:39.1]} 36. h5 {[%clk 0:01:21.6]} 36... h6 {[%clk 0:00:38.6]} 37. Kg2 {[%clk
0:01:20.5]} 37... Kf8 {[%clk 0:00:33.9]} 38. Bc6 {[%clk 0:01:19.1]} 38... Kg8
{[%clk 0:00:27.3]} 39. Kf3 {[%clk 0:01:17.3]} 39... Rf8 {[%clk 0:00:25.2]} 40.
Kf4 {[%clk 0:01:17.2]} 40... Kh8 {[%clk 0:00:25.1]} 41. Bd7 {[%clk 0:01:15.1]}
41... Kg8 {[%clk 0:00:16.9]} 42. Bc8 {[%clk 0:01:14.9]} 42... Kh8 {[%clk
0:00:13]} 43. Rc6 {[%clk 0:01:13.6]} 43... Kg7 {[%clk 0:00:11.4]} 44. Rg6+
{[%clk 0:01:13.3]} 44... Kf7 {[%clk 0:00:08.1]} 45. Rxh6 {[%clk 0:01:12.6]}
45... Ke7 {[%clk 0:00:06.3]} 46. Rc6 {[%clk 0:01:09.7]} 46... Rh8 {[%clk
0:00:03.9]} 47. h6 {[%clk 0:01:09.6]} 47... Rg8 {[%clk 0:00:02.8]} 48. Kxf5
{[%clk 0:01:08.6]} 48... Rh8 {[%clk 0:00:01.5]} 49. g4 {[%clk 0:01:07.9]} 49...
Rf8+ {[%clk 0:00:02.1]} 50. Kg5 {[%clk 0:01:07.5]} 50... Kf7 {[%clk 0:00:01.1]}
51. f4 {[%clk 0:01:07]} 51... Rg8+ {[%clk 0:00:01.4]} 52. Kh4 {[%clk 0:01:07]}
52... Rf8 {[%clk 0:00:02.2]} 53. g5 {[%clk 0:01:07]} 53... Re8 {[%clk
0:00:02.8]} 54. Kh5 {[%clk 0:01:05.8]} 54... Rd8 {[%clk 0:00:03.7]} 55. g6+
{[%clk 0:01:05.9]} 55... Ke7 {[%clk 0:00:04.6]} 56. f5 {[%clk 0:01:05.5]} 56...
Rd2 {[%clk 0:00:03.5]} 57. f6+ {[%clk 0:01:05.4]} 57... Ke8 {[%clk 0:00:03.5]}
58. g7 {[%clk 0:01:05.4]} 58... Kf7 {[%clk 0:00:03.9]} 59. h7 {[%clk 0:01:02.6]}
59... Rh2+ {[%clk 0:00:04]} 60. Kg5 {[%clk 0:01:02.4]} 60... Rxh7 {[%clk
0:00:04.7]} 61. Be6+ {[%clk 0:01:02.2]} 61... Ke8 {[%clk 0:00:04.2]} 62. Rc8+
{[%clk 0:01:02.3]} 1-0

[Event "Early-Titled-Tuesday-Blitz-May-28-2024"]
[Site "Chess.com"]
[Date "2024.05.28"]
[Round "6"]
[White "chess_sharparchitect"]
[Black "talaicito"]
[Result "1-0"]
[WhiteElo "2374"]
[BlackElo "2251"]
[TimeControl "180+1"]
[EndTime "9:07:22 PDT"]
[Termination "chess_sharparchitect won on time"]

1. c4 {[%clk 0:03:00.9]} 1... e5 {[%clk 0:02:59.8]} 2. Nc3 {[%clk 0:03:00]} 2...
d6 {[%clk 0:03:00.2]} 3. Nf3 {[%clk 0:02:51.8]} 3... f5 {[%clk 0:03:00.6]} 4. d4
{[%clk 0:02:51.3]} 4... e4 {[%clk 0:03:00.7]} 5. Ng5 {[%clk 0:02:48.3]} 5... Nf6
{[%clk 0:03:00.6]} 6. h4 {[%clk 0:02:46.9]} 6... c6 {[%clk 0:03:00.3]} 7. e3
{[%clk 0:02:37.6]} 7... Be7 {[%clk 0:03:00.1]} 8. Be2 {[%clk 0:02:26.8]} 8...
O-O {[%clk 0:03:00.2]} 9. b3 {[%clk 0:02:16.4]} 9... a5 {[%clk 0:02:57.4]} 10.
Bb2 {[%clk 0:02:13.9]} 10... Na6 {[%clk 0:02:47.7]} 11. a3 {[%clk 0:02:09.3]}
11... Nc7 {[%clk 0:02:47.2]} 12. d5 {[%clk 0:01:41.3]} 12... Qe8 {[%clk
0:02:35.7]} 13. Nh3 {[%clk 0:01:30.1]} 13... Nd7 {[%clk 0:01:56.4]} 14. Nf4
{[%clk 0:01:22.1]} 14... Ne5 {[%clk 0:01:56]} 15. h5 {[%clk 0:01:20.1]} 15...
Bd7 {[%clk 0:01:40.7]} 16. Rc1 {[%clk 0:01:15.8]} 16... Na6 {[%clk 0:01:37.2]}
17. Na4 {[%clk 0:01:07.7]} 17... Qd8 {[%clk 0:01:27.9]} 18. Qd2 {[%clk
0:00:53.8]} 18... b5 {[%clk 0:01:25.6]} 19. dxc6 {[%clk 0:00:50.4]} 19... bxa4
{[%clk 0:01:16.4]} 20. Qd5+ {[%clk 0:00:48.1]} 20... Rf7 {[%clk 0:01:06.2]} 21.
cxd7 {[%clk 0:00:47.6]} 21... Nc7 {[%clk 0:00:55.8]} 22. Qd2 {[%clk 0:00:40]}
22... Nxd7 {[%clk 0:00:44.3]} 23. h6 {[%clk 0:00:32.6]} 23... g5 {[%clk
0:00:38.5]} 24. Nd5 {[%clk 0:00:21.9]} 24... Nxd5 {[%clk 0:00:22.8]} 25. Qxd5
{[%clk 0:00:21.8]} 25... Nb6 {[%clk 0:00:14]} 26. Qd2 {[%clk 0:00:19.2]} 26...
axb3 {[%clk 0:00:13.4]} 27. Bh5 {[%clk 0:00:14.3]} 27... Rf8 {[%clk 0:00:11.6]}
28. Bg7 {[%clk 0:00:13.4]} 28... a4 {[%clk 0:00:08.3]} 29. O-O {[%clk
0:00:11.8]} 29... Bf6 {[%clk 0:00:03.9]} 30. Bxf8 {[%clk 0:00:11.2]} 30... Qxf8
{[%clk 0:00:03.5]} 31. Rfd1 {[%clk 0:00:10.7]} 31... Be5 {[%clk 0:00:01]} 32.
Be2 {[%clk 0:00:10.3]} 32... Qxh6 {[%clk 0:00:01]} 33. g3 {[%clk 0:00:09.1]}
33... f4 {[%clk 0:00:01.2]} 34. exf4 {[%clk 0:00:08.9]} 34... gxf4 {[%clk
0:00:01.3]} 35. c5 {[%clk 0:00:08.1]} 1-0

[Event "Early-Titled-Tuesday-Blitz-May-28-2024"]
[Site "Chess.com"]
[Date "2024.05.28"]
[Round "6"]
[White "Let_it_be_1"]
[Black "verrbaa"]
[Result "1/2-1/2"]
[WhiteElo "2598"]
[BlackElo "2433"]
[TimeControl "180+1"]
[EndTime "9:07:23 PDT"]
[Termination "Game drawn by repetition"]

1. e4 {[%clk 0:03:00.9]} 1... c5 {[%clk 0:02:58.1]} 2. Nf3 {[%clk 0:03:00.6]}
2... e6 {[%clk 0:02:58.2]} 3. d4 {[%clk 0:03:00.8]} 3... cxd4 {[%clk 0:02:58.5]}
4. Nxd4 {[%clk 0:03:01.7]} 4... Nc6 {[%clk 0:02:58.7]} 5. Nc3 {[%clk 0:03:01.3]}
5... Qc7 {[%clk 0:02:59]} 6. Be2 {[%clk 0:03:01.2]} 6... Nf6 {[%clk 0:02:57.7]}
7. O-O {[%clk 0:03:00.9]} 7... Be7 {[%clk 0:02:54.6]} 8. Be3 {[%clk 0:02:59.8]}
8... O-O {[%clk 0:02:50.8]} 9. f4 {[%clk 0:02:59.5]} 9... d6 {[%clk 0:02:51.2]}
10. Kh1 {[%clk 0:02:58.7]} 10... a6 {[%clk 0:02:45]} 11. a4 {[%clk 0:02:58.3]}
11... Bd7 {[%clk 0:02:39]} 12. Nb3 {[%clk 0:02:58.3]} 12... b6 {[%clk
0:02:38.9]} 13. Bf3 {[%clk 0:02:57.6]} 13... Rab8 {[%clk 0:02:37.4]} 14. Qe2
{[%clk 0:02:57.4]} 14... Bc8 {[%clk 0:02:30.3]} 15. Qf2 {[%clk 0:02:45.8]} 15...
Na5 {[%clk 0:02:17.5]} 16. Nd2 {[%clk 0:02:44.7]} 16... Nd7 {[%clk 0:02:09.8]}
17. Bd4 {[%clk 0:02:11.1]} 17... Bb7 {[%clk 0:02:05.8]} 18. Qg3 {[%clk
0:02:03.2]} 18... e5 {[%clk 0:02:01.6]} 19. Be3 {[%clk 0:01:58.3]} 19... exf4
{[%clk 0:01:58.2]} 20. Bxf4 {[%clk 0:01:58.1]} 20... Ne5 {[%clk 0:01:58]} 21.
Be2 {[%clk 0:01:51.5]} 21... Ng6 {[%clk 0:01:48.7]} 22. Be3 {[%clk 0:01:49.1]}
22... Bf6 {[%clk 0:01:47.3]} 23. Ra3 {[%clk 0:01:41.6]} 23... Rfe8 {[%clk
0:01:22.7]} 24. Rxf6 {[%clk 0:01:27.4]} 24... gxf6 {[%clk 0:01:22.4]} 25. h4
{[%clk 0:01:26.9]} 25... Kh8 {[%clk 0:01:22.2]} 26. Qf2 {[%clk 0:01:13.2]} 26...
Qe7 {[%clk 0:01:18.8]} 27. Bxb6 {[%clk 0:01:05.6]} 27... Nc6 {[%clk 0:01:08]}
28. Nd5 {[%clk 0:01:04.7]} 28... Qe5 {[%clk 0:00:47.4]} 29. Nxf6 {[%clk
0:00:59.2]} 29... Qf4 {[%clk 0:00:23.3]} 30. Nxe8 {[%clk 0:00:44.2]} 30... Rxe8
{[%clk 0:00:19.3]} 31. Bc4 {[%clk 0:00:38.1]} 31... Nce5 {[%clk 0:00:17.4]} 32.
Bd5 {[%clk 0:00:34.5]} 32... Bxd5 {[%clk 0:00:15.1]} 33. exd5 {[%clk 0:00:34.5]}
33... Qxh4+ {[%clk 0:00:14.8]} 34. Qxh4 {[%clk 0:00:33.9]} 34... Nxh4 {[%clk
0:00:15.7]} 35. c4 {[%clk 0:00:25.7]} 35... Ng4 {[%clk 0:00:15.3]} 36. Nf3
{[%clk 0:00:21.8]} 36... Nf5 {[%clk 0:00:09.7]} 37. c5 {[%clk 0:00:19.4]} 37...
dxc5 {[%clk 0:00:09]} 38. Bxc5 {[%clk 0:00:19.3]} 38... Ng3+ {[%clk 0:00:03.2]}
39. Kg1 {[%clk 0:00:18.4]} 39... Ne2+ {[%clk 0:00:03.5]} 40. Kh1 {[%clk
0:00:17.7]} 40... Ng3+ {[%clk 0:00:03.5]} 41. Kg1 {[%clk 0:00:18]} 41... Ne2+
{[%clk 0:00:03.9]} 42. Kh1 {[%clk 0:00:18.3]} 42... Ng3+ {[%clk 0:00:03.4]}
1/2-1/2

[Event "Early-Titled-Tuesday-Blitz-May-28-2024"]
[Site "Chess.com"]
[Date "2024.05.28"]
[Round "6"]
[White "Eliwood44"]
[Black "biveklama"]
[Result "1-0"]
[WhiteElo "2473"]
[BlackElo "2614"]
[TimeControl "180+1"]
[EndTime "9:07:28 PDT"]
[Termination "Eliwood44 won by resignation"]

1. d4 {[%clk 0:03:00.9]} 1... d5 {[%clk 0:03:00]} 2. c4 {[%clk 0:02:59.4]} 2...
c6 {[%clk 0:03:00.3]} 3. Nf3 {[%clk 0:02:54.7]} 3... Nf6 {[%clk 0:03:00.8]} 4.
e3 {[%clk 0:02:54.9]} 4... Bg4 {[%clk 0:03:00.1]} 5. Be2 {[%clk 0:02:32.3]} 5...
e6 {[%clk 0:02:57.1]} 6. h3 {[%clk 0:02:28.6]} 6... Bxf3 {[%clk 0:02:57.2]} 7.
Bxf3 {[%clk 0:02:28.9]} 7... Nbd7 {[%clk 0:02:57.2]} 8. O-O {[%clk 0:02:27.4]}
8... Bd6 {[%clk 0:02:57.4]} 9. Re1 {[%clk 0:02:26.3]} 9... O-O {[%clk
0:02:57.2]} 10. Nc3 {[%clk 0:02:26.6]} 10... Re8 {[%clk 0:02:55.7]} 11. g3
{[%clk 0:02:24.5]} 11... dxc4 {[%clk 0:02:47]} 12. a4 {[%clk 0:02:21.7]} 12...
e5 {[%clk 0:02:45.6]} 13. Bg2 {[%clk 0:02:16.8]} 13... exd4 {[%clk 0:02:37.1]}
14. exd4 {[%clk 0:02:17.7]} 14... Rxe1+ {[%clk 0:02:32.7]} 15. Qxe1 {[%clk
0:02:13.8]} 15... h6 {[%clk 0:02:31.5]} 16. Qe2 {[%clk 0:02:06.6]} 16... Nb6
{[%clk 0:02:21.3]} 17. a5 {[%clk 0:02:05.1]} 17... Nbd5 {[%clk 0:02:21.4]} 18.
Qxc4 {[%clk 0:02:03.8]} 18... Nb4 {[%clk 0:02:06.6]} 19. Bd2 {[%clk 0:01:56]}
19... Qd7 {[%clk 0:01:49.1]} 20. Ne4 {[%clk 0:01:45.2]} 20... Nxe4 {[%clk
0:01:35]} 21. Bxb4 {[%clk 0:01:41.5]} 21... Nf6 {[%clk 0:01:21]} 22. Re1 {[%clk
0:01:27.1]} 22... Bxb4 {[%clk 0:01:05.4]} 23. Qxb4 {[%clk 0:01:25.7]} 23... Re8
{[%clk 0:01:06]} 24. Rxe8+ {[%clk 0:01:24.3]} 24... Nxe8 {[%clk 0:01:06.9]} 25.
Qc5 {[%clk 0:01:20.2]} 25... a6 {[%clk 0:01:06]} 26. d5 {[%clk 0:01:20.3]} 26...
cxd5 {[%clk 0:01:03]} 27. Bxd5 {[%clk 0:01:19.8]} 27... Nd6 {[%clk 0:01:01.2]}
28. Kg2 {[%clk 0:01:07.1]} 28... g6 {[%clk 0:00:54.1]} 29. b4 {[%clk 0:01:05.5]}
29... Kg7 {[%clk 0:00:51.7]} 30. Kh2 {[%clk 0:01:02.4]} 30... h5 {[%clk
0:00:47.3]} 31. Qd4+ {[%clk 0:01:01.1]} 31... Kh7 {[%clk 0:00:33.6]} 32. Bxb7
{[%clk 0:00:59.7]} 32... Qxb7 {[%clk 0:00:28.8]} 33. Qxd6 {[%clk 0:00:59.1]}
33... Qf3 {[%clk 0:00:24.6]} 34. Qf4 {[%clk 0:00:51.8]} 34... Qd5 {[%clk
0:00:23.6]} 35. h4 {[%clk 0:00:44.2]} 35... Kg7 {[%clk 0:00:23.4]} 36. Qe3
{[%clk 0:00:40.2]} 36... Kh7 {[%clk 0:00:20.5]} 37. Qa7 {[%clk 0:00:36.4]} 37...
Kg7 {[%clk 0:00:19.7]} 38. Qxa6 {[%clk 0:00:33.2]} 38... Qd4 {[%clk 0:00:17.3]}
39. Qb6 {[%clk 0:00:32.1]} 39... Qe4 {[%clk 0:00:14]} 40. a6 {[%clk 0:00:30.5]}
40... g5 {[%clk 0:00:14.5]} 41. Qe3 {[%clk 0:00:24]} 41... Qxb4 {[%clk
0:00:07.4]} 42. Qxg5+ {[%clk 0:00:23.4]} 42... Kf8 {[%clk 0:00:07]} 43. a7
{[%clk 0:00:22.4]} 43... Qb6 {[%clk 0:00:05.6]} 44. a8=Q+ {[%clk 0:00:22.1]} 1-0

[Event "Early-Titled-Tuesday-Blitz-May-28-2024"]
[Site "Chess.com"]
[Date "2024.05.28"]
[Round "6"]
[White "Rdeux42"]
[Black "GeorgiosSouleidis"]
[Result "0-1"]
[WhiteElo "2431"]
[BlackElo "2611"]
[TimeControl "180+1"]
[EndTime "9:07:31 PDT"]
[Termination "GeorgiosSouleidis won by resignation"]

1. e4 {[%clk 0:03:00.9]} 1... c5 {[%clk 0:02:51.9]} 2. Nf3 {[%clk 0:03:00.8]}
2... e6 {[%clk 0:02:51.7]} 3. c4 {[%clk 0:03:00.4]} 3... Nc6 {[%clk 0:02:51.7]}
4. Nc3 {[%clk 0:03:01]} 4... Nd4 {[%clk 0:02:50.9]} 5. Nxd4 {[%clk 0:03:00.5]}
5... cxd4 {[%clk 0:02:51.8]} 6. Ne2 {[%clk 0:03:00.5]} 6... Bc5 {[%clk
0:02:52.1]} 7. b4 {[%clk 0:02:55.9]} 7... Bxb4 {[%clk 0:02:50.6]} 8. Nxd4 {[%clk
0:02:55]} 8... Qc7 {[%clk 0:01:38.3]} 9. Bb2 {[%clk 0:02:30.6]} 9... Nf6 {[%clk
0:01:36.4]} 10. Qc2 {[%clk 0:02:23.1]} 10... a6 {[%clk 0:01:30]} 11. Be2 {[%clk
0:02:19.3]} 11... O-O {[%clk 0:01:29.9]} 12. O-O {[%clk 0:02:18.8]} 12... d5
{[%clk 0:01:21.4]} 13. cxd5 {[%clk 0:02:06.9]} 13... Qxc2 {[%clk 0:01:18]} 14.
Nxc2 {[%clk 0:02:07.8]} 14... Bxd2 {[%clk 0:01:13.6]} 15. Bxf6 {[%clk
0:02:01.6]} 15... gxf6 {[%clk 0:01:13.1]} 16. Rad1 {[%clk 0:02:00.1]} 16... Ba5
{[%clk 0:01:07.7]} 17. Ne3 {[%clk 0:01:53.4]} 17... b5 {[%clk 0:01:03]} 18. Rd3
{[%clk 0:01:16.7]} 18... Bb7 {[%clk 0:00:54.2]} 19. Ng4 {[%clk 0:01:11.8]} 19...
Kg7 {[%clk 0:00:49.6]} 20. Rg3 {[%clk 0:01:11.4]} 20... Bc7 {[%clk 0:00:40]} 21.
f4 {[%clk 0:01:05.9]} 21... Ba5 {[%clk 0:00:36.6]} 22. e5 {[%clk 0:00:54.2]}
22... Bb6+ {[%clk 0:00:33.5]} 23. Kh1 {[%clk 0:00:53.5]} 23... Bxd5 {[%clk
0:00:19.6]} 24. Nxf6+ {[%clk 0:00:51.1]} 24... Kh8 {[%clk 0:00:20.1]} 25. Bd3
{[%clk 0:00:47.2]} 25... Rg8 {[%clk 0:00:18]} 26. Nxg8 {[%clk 0:00:44.8]} 26...
Rxg8 {[%clk 0:00:18.9]} 27. Rxg8+ {[%clk 0:00:43.4]} 27... Kxg8 {[%clk
0:00:19.8]} 28. Bb1 {[%clk 0:00:35.6]} 28... Be3 {[%clk 0:00:17.5]} 29. h3
{[%clk 0:00:26.9]} 29... b4 {[%clk 0:00:17.8]} 30. Kh2 {[%clk 0:00:27.2]} 30...
a5 {[%clk 0:00:18.2]} 31. g4 {[%clk 0:00:26.2]} 31... a4 {[%clk 0:00:18.4]} 32.
Kg3 {[%clk 0:00:26.3]} 32... Bd4 {[%clk 0:00:16]} 33. Rd1 {[%clk 0:00:25.1]}
33... Bc3 {[%clk 0:00:16.2]} 34. Rd3 {[%clk 0:00:22.8]} 34... a3 {[%clk
0:00:14]} 35. Kf2 {[%clk 0:00:19.4]} 35... h6 {[%clk 0:00:14.1]} 36. Ke3 {[%clk
0:00:19.7]} 36... Kf8 {[%clk 0:00:14.6]} 37. Rxc3 {[%clk 0:00:12.5]} 37... bxc3
{[%clk 0:00:15.5]} 38. Kd3 {[%clk 0:00:13]} 38... Bg2 {[%clk 0:00:14.5]} 39. h4
{[%clk 0:00:12.7]} 39... Bh3 {[%clk 0:00:15]} 40. g5 {[%clk 0:00:13.2]} 40...
Bf5+ {[%clk 0:00:15.1]} 41. Kxc3 {[%clk 0:00:13.1]} 41... Bxb1 {[%clk
0:00:15.4]} 42. Kb3 {[%clk 0:00:13.8]} 42... hxg5 {[%clk 0:00:14.9]} 43. fxg5
{[%clk 0:00:12.6]} 43... Kg7 {[%clk 0:00:13.1]} 44. h5 {[%clk 0:00:12.7]} 44...
Be4 {[%clk 0:00:12.6]} 45. Kxa3 {[%clk 0:00:13.1]} 45... Bf3 {[%clk 0:00:13.2]}
46. g6 {[%clk 0:00:12.3]} 46... fxg6 {[%clk 0:00:13]} 47. hxg6 {[%clk
0:00:13.2]} 47... Kxg6 {[%clk 0:00:13.6]} 48. Kb4 {[%clk 0:00:14.1]} 48... Kf5
{[%clk 0:00:14]} 49. a4 {[%clk 0:00:15]} 49... Kxe5 {[%clk 0:00:14.5]} 50. a5
{[%clk 0:00:15.9]} 50... Kf4 {[%clk 0:00:14.9]} 0-1

[Event "Early-Titled-Tuesday-Blitz-May-28-2024"]
[Site "Chess.com"]
[Date "2024.05.28"]
[Round "6"]
[White "pfalcon1949"]
[Black "luca_va99"]
[Result "1/2-1/2"]
[WhiteElo "1916"]
[BlackElo "2203"]
[TimeControl "180+1"]
[EndTime "9:07:31 PDT"]
[Termination "Game drawn - insufficient material"]

1. e4 {[%clk 0:02:52.1]} 1... c5 {[%clk 0:02:58.2]} 2. Nf3 {[%clk 0:02:51.1]}
2... g6 {[%clk 0:02:58]} 3. d4 {[%clk 0:02:44.4]} 3... cxd4 {[%clk 0:02:58.9]}
4. Nxd4 {[%clk 0:02:44.5]} 4... Bg7 {[%clk 0:02:58.8]} 5. Be3 {[%clk 0:02:44.6]}
5... Nc6 {[%clk 0:02:58.3]} 6. c4 {[%clk 0:02:44.2]} 6... Nf6 {[%clk 0:02:57.8]}
7. Nc3 {[%clk 0:02:44.8]} 7... O-O {[%clk 0:02:57.9]} 8. Be2 {[%clk 0:02:44.1]}
8... d6 {[%clk 0:02:58.3]} 9. O-O {[%clk 0:02:43.8]} 9... Bd7 {[%clk 0:02:58.9]}
10. Rc1 {[%clk 0:02:43]} 10... Nxd4 {[%clk 0:02:59.1]} 11. Bxd4 {[%clk
0:02:41.9]} 11... Bc6 {[%clk 0:03:00]} 12. f3 {[%clk 0:02:39.2]} 12... a5 {[%clk
0:03:00.6]} 13. Qd2 {[%clk 0:02:35.6]} 13... Nd7 {[%clk 0:03:00.5]} 14. Rfd1
{[%clk 0:02:35.3]} 14... Nc5 {[%clk 0:02:48.2]} 15. Bxg7 {[%clk 0:02:33.3]}
15... Kxg7 {[%clk 0:02:48.2]} 16. b3 {[%clk 0:02:33.1]} 16... Qb6 {[%clk
0:02:34.1]} 17. Kh1 {[%clk 0:02:32]} 17... f5 {[%clk 0:02:29.6]} 18. Nd5 {[%clk
0:02:27.6]} 18... Bxd5 {[%clk 0:02:28.3]} 19. exd5 {[%clk 0:02:26.1]} 19... Nd7
{[%clk 0:02:18.2]} 20. Qd4+ {[%clk 0:02:22.8]} 20... Qxd4 {[%clk 0:02:13.5]} 21.
Rxd4 {[%clk 0:02:23.7]} 21... f4 {[%clk 0:02:11.4]} 22. Bd3 {[%clk 0:02:19.8]}
22... Ne5 {[%clk 0:02:10.7]} 23. Bb1 {[%clk 0:02:17.8]} 23... g5 {[%clk
0:02:05.4]} 24. Kg1 {[%clk 0:02:17.9]} 24... Rfc8 {[%clk 0:02:02]} 25. Kf2
{[%clk 0:02:17]} 25... b5 {[%clk 0:01:59.7]} 26. Bd3 {[%clk 0:02:04.8]} 26... a4
{[%clk 0:01:50.8]} 27. h4 {[%clk 0:02:02.8]} 27... axb3 {[%clk 0:01:50.3]} 28.
axb3 {[%clk 0:02:02]} 28... Ra2+ {[%clk 0:01:48.3]} 29. Kg1 {[%clk 0:02:01.5]}
29... h6 {[%clk 0:01:43.5]} 30. hxg5 {[%clk 0:01:59.9]} 30... hxg5 {[%clk
0:01:44.4]} 31. Bf5 {[%clk 0:01:57.3]} 31... Rc7 {[%clk 0:01:42.9]} 32. Re4
{[%clk 0:01:27.7]} 32... bxc4 {[%clk 0:01:40.9]} 33. bxc4 {[%clk 0:01:25.8]}
33... Ra4 {[%clk 0:01:39.6]} 34. Rxe5 {[%clk 0:01:18.7]} 34... dxe5 {[%clk
0:01:36]} 35. c5 {[%clk 0:01:19.6]} 35... Kf6 {[%clk 0:01:33.7]} 36. Be4 {[%clk
0:01:16.9]} 36... Ra5 {[%clk 0:01:32.2]} 37. c6 {[%clk 0:01:14.8]} 37... Ra4
{[%clk 0:01:12.3]} 38. g4 {[%clk 0:01:12.4]} 38... fxg3 {[%clk 0:01:04.4]} 39.
Kg2 {[%clk 0:01:12]} 39... g4 {[%clk 0:01:03.9]} 40. Kxg3 {[%clk 0:01:12]} 40...
gxf3 {[%clk 0:01:04.2]} 41. Kxf3 {[%clk 0:01:07.9]} 41... Rd4 {[%clk 0:00:58.5]}
42. Rf1 {[%clk 0:01:03.4]} 42... e6 {[%clk 0:00:50.1]} 43. Ke3+ {[%clk
0:00:50.8]} 43... Ke7 {[%clk 0:00:50]} 44. dxe6 {[%clk 0:00:46.4]} 44... Kxe6
{[%clk 0:00:50.9]} 45. Rh1 {[%clk 0:00:45.2]} 45... Ra4 {[%clk 0:00:13]} 46.
Rh6+ {[%clk 0:00:42.8]} 46... Ke7 {[%clk 0:00:13.1]} 47. Bd5 {[%clk 0:00:40]}
47... Rd4 {[%clk 0:00:09.3]} 48. Re6+ {[%clk 0:00:37]} 48... Kd8 {[%clk
0:00:07.6]} 49. Rxe5 {[%clk 0:00:37.1]} 49... Rxd5 {[%clk 0:00:05.2]} 50. Rxd5+
{[%clk 0:00:36.8]} 50... Ke7 {[%clk 0:00:04.6]} 51. Rc5 {[%clk 0:00:37.1]} 51...
Kd6 {[%clk 0:00:05.1]} 52. Rc3 {[%clk 0:00:35.4]} 52... Rxc6 {[%clk 0:00:05]}
53. Rd3+ {[%clk 0:00:35.8]} 53... Ke6 {[%clk 0:00:05.2]} 54. Rd4 {[%clk
0:00:35.3]} 54... Rd6 {[%clk 0:00:05.9]} 55. Rxd6+ {[%clk 0:00:34.7]} 55... Kxd6
{[%clk 0:00:06.3]} 1/2-1/2